bitfinex/quotes_BTCUSD_20241111
["timestamp","ask_amount","ask_price","bid_price","bid_amount"]
[1731336121912,0.26829861,82576.0,82575.0,0.00649]
[1731336122130,0.26404221,82576.0,82575.0,0.00649]
[1731336122353,0.26404221,82576.0,82546.0,0.18190969]
[1731336122354,0.242256,82557.0,82546.0,0.18190969]
[1731336122588,0.24707121,82556.0,82555.0,0.18190969]
[1731336122798,0.121131,82555.0,82546.0,0.18190969]
[1731336123007,0.121131,82555.0,82538.0,0.230197]
[1731336123008,0.12594221,82555.0,82538.0,0.230197]
[1731336123215,0.005,82548.0,82516.0,0.18190969]
[1731336123427,0.12594221,82547.0,82528.0,0.18190969]
[1731336123638,0.198941,82549.0,82528.0,0.18190969]
[1731336123639,0.0778,82549.0,82528.0,0.18190969]
[1731336123865,0.02396995,82547.0,82528.0,0.18190969]
[1731336124071,0.18190969,82569.0,82547.0,0.23517]
[1731336124297,0.18190969,82569.0,82551.0,0.121137]
[1731336124298,0.18190969,82552.0,82551.0,0.121137]
[1731336124494,0.20600552,82569.0,82548.0,0.1]
[1731336124707,0.18190969,82560.0,82551.0,0.00331558]
[1731336124901,0.24225,82559.0,82549.0,0.00333038]
[1731336125160,0.24225,82559.0,82552.0,0.00332103]
[1731336125161,0.36819421,82559.0,82552.0,0.00332103]
[1731336125342,0.36819421,82559.0,82537.0,0.18190969]
[1731336125343,0.121128,82557.0,82539.0,0.230192]
[1731336125580,0.15114923,82556.0,82537.0,0.18190969]
[1731336125758,0.121138,82550.0,82548.0,0.002]
[1731336125980,0.005,82559.0,82548.0,0.002]
[1731336126200,0.02441295,82554.0,82550.0,0.121138]
[1731336126465,0.005,82561.0,82548.0,0.002]
[1731336126466,0.0477,82565.0,82557.0,0.230142]
[1731336126637,0.005,82581.0,82548.0,0.002]
[1731336126638,0.18190969,82563.0,82562.0,0.121121]
[1731336126904,0.18190969,82563.0,82548.0,0.00442258]
[1731336126905,0.12594221,82563.0,82548.0,0.002]
[1731336127096,0.005,82565.0,82549.0,0.18190969]
[1731336127097,0.12594221,82562.0,82549.0,0.18190969]
[1731336127305,0.12594221,82562.0,82548.0,0.013]
[1731336127306,0.25387665,82557.0,82548.0,0.013]
[1731336127509,0.121134,82553.0,82552.0,0.002]
[1731336127720,0.121134,82553.0,82537.0,0.122]
[1731336127721,0.121139,82550.0,82537.0,0.122]
[1731336127920,0.121148,82544.0,82537.0,0.000843]
[1731336128128,0.12594221,82543.0,82537.0,0.000843]
[1731336128334,0.12594221,82543.0,82538.0,0.121155]
[1731336128547,0.12594221,82543.0,82537.0,0.000843]
[1731336128783,0.12594221,82543.0,82538.0,0.230197]
[1731336129050,0.18190969,82542.0,82537.0,0.000843]
[1731336129248,0.12594221,82543.0,82537.0,0.000843]
[1731336129480,0.12594221,82543.0,82537.0,0.121999]
[1731336129610,0.18190969,82554.0,82542.0,0.230183]
[1731336129818,0.18190969,82545.0,82538.0,0.230194]
[1731336130024,0.12594221,82544.0,82532.0,0.00137]
[1731336130264,0.24709021,82544.0,82537.0,0.002]
[1731336130456,0.24709021,82544.0,82537.0,0.014]
[1731336130457,0.30305869,82543.0,82537.0,0.014]
[1731336130715,0.12594221,82542.0,82537.0,0.012]
[1731336131022,0.12594221,82542.0,82532.0,0.122534]
[1731336131250,0.12594221,82542.0,82532.0,0.134534]
[1731336131486,0.12594221,82542.0,82532.0,0.01337]
[1731336131673,0.24709221,82542.0,82532.0,0.01337]
[1731336131971,0.12594221,82542.0,82532.0,0.01337]
[1731336132174,0.18190969,82536.0,82532.0,0.01337]
[1731336132385,0.18190969,82536.0,82497.0,0.005]
[1731336132386,0.005,82524.0,82502.0,0.18190969]
[1731336132752,0.005,82518.0,82515.0,0.18190969]
[1731336132963,0.005,82518.0,82502.0,0.18190969]
[1731336132964,0.12594221,82517.0,82502.0,0.18190969]
[1731336133190,0.131197,82510.0,82492.0,0.00137]
[1731336133355,0.38513921,82510.0,82492.0,0.00137]
[1731336133582,0.005,82493.0,82492.0,0.00137]
[1731336133792,0.12594221,82493.0,82492.0,0.00137]
[1731336134354,0.24716421,82493.0,82492.0,0.00137]
[1731336134565,0.2823475,82493.0,82492.0,0.00137]
[1731336134761,0.24716421,82493.0,82492.0,0.00137]
[1731336135127,0.12594221,82493.0,82492.0,0.00137]
[1731336135340,0.25216421,82493.0,82492.0,0.00337]
[1731336135556,0.2759844,82493.0,82492.0,0.00337]
[1731336135766,0.2759844,82493.0,82479.0,0.00137]
[1731336135767,0.005,82488.0,82479.0,0.00137]
[1731336135980,0.12594221,82487.0,82479.0,0.00137]
[1731336136216,0.03082019,82493.0,82481.0,0.18190969]
[1731336136421,0.03082019,82493.0,82485.0,0.230344]
[1731336136422,0.007,82493.0,82485.0,0.230344]
[1731336136666,0.007,82493.0,82492.0,0.125223]
[1731336137082,0.007,82493.0,82492.0,0.12457401]
[1731336137293,0.12594221,82493.0,82492.0,0.00335101]
[1731336137505,0.18190969,82508.0,82492.0,0.00335101]
[1731336137712,0.18190969,82499.0,82480.0,0.1]
[1731336137945,0.12594221,82499.0,82480.0,0.1]
[1731336138152,0.18190969,82497.0,82492.0,0.002]
[1731336138357,0.02369191,82514.0,82496.0,0.18190969]
[1731336138577,0.18190969,82507.0,82504.0,0.230289]
[1731336138801,0.18190969,82518.0,82516.0,0.121188]
[1731336139220,0.18190969,82518.0,82516.0,0.12459441]
[1731336139426,0.18190969,82527.0,82516.0,0.12459441]
[1731336139640,0.18190969,82527.0,82516.0,0.1235996]
[1731336139842,0.02378631,82526.0,82516.0,0.00340641]
[1731336140045,0.12776139,82517.0,82516.0,0.00340641]
[1731336140255,0.12776139,82517.0,82512.0,0.121193]
[1731336140456,0.12776139,82517.0,82507.0,0.230282]
[1731336140678,0.12776139,82517.0,82513.0,0.00339708]
[1731336140881,0.13676139,82517.0,82500.0,0.230303]
[1731336141096,0.01081918,82517.0,82516.0,0.121188]
[1731336141326,0.00181918,82517.0,82516.0,0.121188]
[1731336141537,0.00181918,82517.0,82516.0,0.40294664]
[1731336141758,1.8e-07,82517.0,82516.0,0.38352495]
[1731336141964,1.8e-07,82517.0,82516.0,0.43352326]
[1731336142185,0.18190969,82554.0,82535.0,0.12616]
[1731336142389,0.08498169,82536.0,82535.0,0.38010221]
[1731336142602,0.08498169,82536.0,82535.0,0.3834447]
[1731336142813,0.18190969,82554.0,82540.0,0.01]
[1731336143035,0.18190969,82554.0,82553.0,0.121134]
[1731336143263,0.18190969,82554.0,82553.0,0.34707621]
[1731336143474,0.18190969,82568.0,82567.0,0.221113]
[1731336143683,0.0474,82604.0,82575.0,0.005]
[1731336143903,0.18190969,82609.0,82575.0,0.37504421]
[1731336144121,0.121054,82608.0,82575.0,0.34704421]
[1731336144483,0.18190969,82609.0,82575.0,0.35022593]
[1731336144486,0.005,82607.0,82575.0,0.22428372]
[1731336144706,0.242114,82606.0,82575.0,0.22428372]
[1731336144874,0.005,82607.0,82575.0,0.22628372]
[1731336145061,0.005,82607.0,82575.0,0.223102]
[1731336145265,0.005,82607.0,82575.0,0.221102]
[1731336145484,0.121063,82602.0,82575.0,0.221102]
[1731336145915,0.12106,82604.0,82575.0,0.221102]
[1731336146111,0.121061,82603.0,82575.0,0.221102]
[1731336146313,0.242126,82602.0,82575.0,0.121102]
[1731336146484,0.242126,82602.0,82575.0,0.133102]
[1731336146485,0.002686,82576.0,82575.0,0.133102]
[1731336146690,0.002686,82576.0,82575.0,0.135102]
[1731336146890,0.001686,82576.0,82575.0,0.123102]
[1731336147099,0.001686,82576.0,82575.0,0.121102]
[1731336147293,0.001686,82576.0,82575.0,0.123102]
[1731336147790,0.001686,82576.0,82568.0,0.23011]
[1731336147991,0.121105,82573.0,82562.0,0.12112]
[1731336148221,0.18690969,82569.0,82539.0,0.18190969]
[1731336148375,0.0488,82564.0,82553.0,0.121134]
[1731336148611,0.12594221,82563.0,82539.0,0.18190969]
[1731336149045,0.12594221,82563.0,82539.0,0.230192]
[1731336149046,0.18190969,82558.0,82539.0,0.230192]
[1731336149263,0.12594221,82557.0,82539.0,0.230192]
[1731336149504,0.12594221,82557.0,82393.0,0.251372]
[1731336149505,0.18190969,82547.0,82516.0,0.18190969]
[1731336149694,0.0759,82548.0,82539.0,0.18190969]
[1731336149840,0.18190969,82546.0,82527.0,0.00242312]
[1731336150207,0.02460503,82553.0,82540.0,0.23019]
[1731336150449,0.18190969,82547.0,82539.0,0.012]
[1731336150653,0.02460503,82553.0,82541.0,0.230188]
[1731336150797,0.02460503,82553.0,82546.0,0.230172]
[1731336151000,0.02460503,82553.0,82541.0,0.121151]
[1731336151201,0.02460503,82553.0,82539.0,0.012]
[1731336151406,0.02460503,82553.0,82552.0,0.121135]
[1731336152037,0.121123,82561.0,82539.0,0.014]
[1731336152038,0.0774,82562.0,82540.0,0.230191]
[1731336152244,0.001688,82569.0,82568.0,0.121112]
[1731336152621,0.12763021,82569.0,82552.0,0.009]
[1731336152827,0.18690969,82567.0,82552.0,0.009]
[1731336153064,0.12594221,82568.0,82527.0,0.005]
[1731336153066,0.0833,82565.0,82554.0,0.18190969]
[1731336153271,0.12594221,82564.0,82544.0,0.18190969]
[1731336153440,0.0833,82565.0,82564.0,0.121118]
[1731336153659,0.0833,82565.0,82545.0,0.2325998]
[1731336153660,0.0833,82565.0,82545.0,0.230177]
[1731336153861,0.0833,82565.0,82557.0,0.121128]
[1731336153862,0.204418,82565.0,82557.0,0.121128]
[1731336154074,0.204418,82565.0,82491.0,0.10547855]
[1731336154075,0.18190969,82558.0,82525.0,0.04603948]
[1731336154246,0.005,82563.0,82554.0,0.002]
[1731336154247,0.121131,82555.0,82554.0,0.002]
[1731336154471,0.005,82547.0,82517.0,0.230255]
[1731336154651,0.23070969,82557.0,82526.0,0.18190969]
[1731336154652,0.121172,82527.0,82526.0,0.18190969]
[1731336154878,0.1212,82508.0,82507.0,0.18190969]
[1731336155253,0.242391,82512.0,82498.0,0.18190969]
[1731336155453,0.242391,82512.0,82495.0,0.230315]
[1731336155454,0.242394,82510.0,82496.0,0.18190969]
[1731336155776,0.005,82518.0,82496.0,0.18190969]
[1731336155777,0.242371,82518.0,82505.0,0.18190969]
[1731336155972,0.02650827,82527.0,82491.0,0.04603948]
[1731336155973,0.18190969,82514.0,82491.0,0.04603948]
[1731336156272,0.18190969,82514.0,82486.0,0.005]
[1731336156273,0.18190969,82514.0,82486.0,0.1]
[1731336156434,0.18190969,82514.0,82485.0,0.18190969]
[1731336156647,0.18190969,82514.0,82496.0,0.01]
[1731336157100,0.005,82524.0,82512.0,0.121194]
[1731336157101,0.18190969,82513.0,82512.0,0.121194]
[1731336157416,0.18190969,82524.0,82497.0,0.04846371]
[1731336157417,0.18190969,82524.0,82498.0,0.230307]
[1731336157618,0.18190969,82515.0,82499.0,0.12836608]
[1731336157741,0.18190969,82515.0,82514.0,0.121191]
[1731336157947,0.18190969,82515.0,82506.0,0.121202]
[1731336158145,0.18190969,82515.0,82488.0,0.18190969]
[1731336158146,0.121183,82520.0,82492.0,0.00526712]
[1731336158433,0.001,82513.0,82503.0,0.230294]
[1731336158636,0.12594221,82519.0,82494.0,0.230319]
[1731336158637,0.18190969,82515.0,82494.0,0.230319]
[1731336158842,0.18390969,82524.0,82504.0,0.18190969]
[1731336158843,0.242364,82521.0,82504.0,0.18190969]
[1731336159057,0.242364,82521.0,82508.0,0.121199]
[1731336159058,0.001,82515.0,82508.0,0.121199]
[1731336159259,0.001,82515.0,82507.0,0.121201]
[1731336159460,0.001,82515.0,82505.0,0.23352618]
[1731336159461,0.12594221,82515.0,82505.0,0.00324018]
[1731336159681,0.1567274,82514.0,82508.0,0.00323317]
[1731336159907,0.121193,82513.0,82503.0,0.121207]
[1731336160140,0.121193,82513.0,82497.0,0.230308]
[1731336160141,0.001,82515.0,82494.0,0.012]
[1731336160390,0.12594221,82514.0,82495.0,0.41222569]
[1731336160625,0.18190969,82513.0,82501.0,0.230299]
[1731336160852,0.18190969,82513.0,82496.0,0.00337494]
[1731336160853,0.12594221,82512.0,82496.0,0.00337494]
[1731336161080,0.12594221,82512.0,82503.0,0.001]
[1731336161311,0.242391,82511.0,82503.0,0.001]
[1731336161521,0.242403,82508.0,82505.0,0.009]
[1731336161740,0.205103,82506.0,82505.0,0.009]
[1731336161954,0.131206,82504.0,82503.0,0.001]
[1731336162159,0.131209,82502.0,82501.0,0.002]
[1731336162371,0.12594221,82502.0,82501.0,0.002]
[1731336162813,0.25215121,82502.0,82501.0,0.002]
[1731336163037,0.25215121,82502.0,82492.0,0.000843]
[1731336163038,0.005,82499.0,82492.0,0.000843]
[1731336163328,0.12594221,82498.0,82492.0,0.000843]
[1731336163473,0.001,82504.0,82492.0,0.122066]
[1731336163682,0.12594221,82503.0,82492.0,0.000843]
[1731336163900,0.18690969,82500.0,82492.0,0.000843]
[1731336164113,0.24715621,82499.0,82492.0,0.000843]
[1731336164326,0.12594221,82499.0,82493.0,0.230322]
[1731336164562,0.12594221,82499.0,82492.0,0.000843]
[1731336164773,0.004,82502.0,82492.0,0.000843]
[1731336165003,0.18190969,82500.0,82492.0,0.000843]
[1731336165670,0.12594221,82499.0,82493.0,0.003]
[1731336166102,0.12594221,82499.0,82492.0,0.000843]
[1731336166325,0.13194221,82499.0,82492.0,0.004843]
[1731336166532,0.121221,82494.0,82492.0,0.004843]
[1731336166776,0.005,82500.0,82492.0,0.004843]
[1731336166777,0.12594221,82493.0,82492.0,0.004843]
[1731336167263,0.005,82504.0,82492.0,0.004843]
[1731336167468,0.007,82499.0,82492.0,0.004843]
[1731336167692,0.12594221,82498.0,82492.0,0.000843]
[1731336167894,0.12594221,82498.0,82493.0,0.003]
[1731336168349,0.121218,82496.0,82493.0,0.003]
[1731336168546,0.12594221,82495.0,82492.0,0.000843]
[1731336168716,0.12594221,82495.0,82492.0,0.004843]
[1731336169130,0.121222,82493.0,82492.0,0.004843]
[1731336169335,0.12594221,82493.0,82492.0,0.000843]
[1731336170051,0.42930569,82510.0,82492.0,0.000843]
[1731336170052,0.005,82504.0,82495.0,0.121218]
[1731336170268,0.006,82495.0,82492.0,0.000843]
[1731336170460,0.12594221,82494.0,82492.0,0.000843]
[1731336170682,0.006,82493.0,82492.0,0.000843]
[1731336171087,0.24716421,82493.0,82492.0,0.000843]
[1731336171287,0.25216421,82493.0,82492.0,0.000843]
[1731336171817,0.12594221,82493.0,82492.0,0.004843]
[1731336172224,0.25216421,82493.0,82492.0,0.004843]
[1731336172642,0.25416421,82493.0,82492.0,0.004843]
[1731336172844,0.25416421,82493.0,82479.0,0.00137]
[1731336172845,0.121241,82480.0,82479.0,0.00137]
[1731336173062,0.37108321,82480.0,82479.0,0.00137]
[1731336173237,1.87108321,82480.0,82479.0,0.00137]
[1731336173437,2.12554372,82480.0,82479.0,0.00137]
[1731336173644,2.12054372,82480.0,82479.0,0.00137]
[1731336173884,2.12554372,82480.0,82479.0,0.00137]
[1731336174362,2.13054372,82480.0,82479.0,0.00137]
[1731336174807,1.88208321,82480.0,82479.0,0.01237]
[1731336175213,0.126245,82477.0,82476.0,0.000844]
[1731336175417,0.25218721,82477.0,82476.0,0.000844]
[1731336176466,0.25418721,82477.0,82476.0,0.000844]
[1731336176672,0.37082924,82477.0,82476.0,0.000844]
[1731336177050,1.86882924,82477.0,82476.0,0.000844]
[1731336177259,1.86682924,82477.0,82476.0,0.000844]
[1731336177438,1.75218721,82477.0,82476.0,0.000844]
[1731336177652,1.76418721,82477.0,82476.0,0.000844]
[1731336177878,1.789098,82477.0,82476.0,0.005844]
[1731336178286,1.803098,82477.0,82476.0,0.005844]
[1731336178555,1.79752978,82477.0,82476.0,0.000844]
[1731336178774,0.1257,82455.0,82454.0,0.00137]
[1731336178976,0.121298,82442.0,82439.0,0.18190969]
[1731336179175,0.12594221,82441.0,82439.0,0.18190969]
[1731336179377,0.12594221,82441.0,82440.0,0.00317511]
[1731336179709,0.12594221,82441.0,82436.0,0.230479]
[1731336179911,0.12594221,82441.0,82440.0,0.1213]
[1731336180118,0.12594221,82441.0,82439.0,0.00327735]
[1731336180346,0.12594221,82441.0,82427.0,0.230505]
[1731336180347,0.1496959,82441.0,82440.0,0.00330218]
[1731336180850,0.1496959,82441.0,82434.0,0.121308]
[1731336181053,0.1496959,82441.0,82440.0,0.0033135]
[1731336181195,0.1496959,82441.0,82429.0,0.230499]
[1731336181401,0.1496959,82441.0,82433.0,0.230488]
[1731336181599,0.1566959,82441.0,82440.0,0.001]
[1731336182229,0.1566959,82441.0,82429.0,0.230499]
[1731336182494,0.1566959,82441.0,82438.0,0.028]
[1731336182882,0.1496959,82441.0,82438.0,0.028]
[1731336183091,0.1546959,82441.0,82438.0,0.028]
[1731336183498,0.16075877,82441.0,82438.0,0.028]
[1731336183710,0.1546959,82441.0,82438.0,0.025]
[1731336184129,0.1546959,82441.0,82440.0,0.001]
[1731336184350,0.1546959,82441.0,82440.0,0.00450507]
[1731336184537,0.1546959,82441.0,82440.0,0.00350507]
[1731336184793,0.02875369,82441.0,82438.0,0.255475]
[1731336185033,0.3078519,82440.0,82438.0,0.028]
[1731336185261,0.18190969,82439.0,82438.0,0.028]
[1731336185460,0.24724321,82439.0,82438.0,0.028]
[1731336185681,0.12594221,82439.0,82438.0,0.028]
[1731336186008,0.12594221,82439.0,82438.0,0.025]
[1731336186815,0.13494221,82439.0,82438.0,0.146303]
[1731336187038,0.13494221,82439.0,82438.0,0.025]
[1731336187459,0.13494221,82439.0,82438.0,0.146303]
[1731336187701,0.12594221,82439.0,82438.0,0.025846]
[1731336188126,0.27543916,82439.0,82438.0,0.025846]
[1731336188385,0.25224321,82439.0,82438.0,0.01444649]
[1731336188613,0.25424321,82439.0,82438.0,0.01444649]
[1731336188820,0.25424321,82439.0,82419.0,0.001372]
[1731336188821,0.121319,82427.0,82419.0,0.001372]
[1731336189030,0.24726121,82427.0,82419.0,0.001372]
[1731336189238,0.126325,82423.0,82419.0,0.001372]
[1731336189477,0.242656,82421.0,82409.0,0.001372]
[1731336189705,0.38659693,82428.0,82409.0,0.001372]
[1731336189706,0.12594221,82420.0,82409.0,0.001372]
[1731336189972,0.242671,82416.0,82409.0,0.001372]
[1731336190186,0.36861621,82415.0,82409.0,0.001372]
[1731336190415,0.12594221,82415.0,82409.0,0.001372]
[1731336190630,0.121339,82414.0,82409.0,0.001372]
[1731336190858,0.12594221,82415.0,82409.0,0.001372]
[1731336190859,0.12594221,82413.0,82409.0,0.001372]
[1731336191087,0.121342,82412.0,82409.0,0.001372]
[1731336191318,0.12594221,82411.0,82409.0,0.006372]
[1731336191563,0.121344,82410.0,82409.0,0.006372]
[1731336191758,0.24728621,82410.0,82409.0,0.001372]
[1731336192007,0.121363,82397.0,82388.0,0.025]
[1731336192213,0.24730521,82397.0,82388.0,0.025]
[1731336192422,0.121375,82389.0,82388.0,0.00064872]
[1731336192631,0.126379,82386.0,82371.0,0.18190969]
[1731336192862,0.33142121,82386.0,82371.0,0.18190969]
[1731336193067,1.83142121,82386.0,82365.0,0.230679]
[1731336193313,1.82642121,82386.0,82365.0,0.230678]
[1731336193516,1.82642121,82386.0,82369.0,0.230668]
[1731336193772,1.82642121,82386.0,82360.0,0.230692]
[1731336193773,1.89745506,82386.0,82360.0,0.230692]
[1731336194014,1.83142121,82386.0,82364.0,0.230681]
[1731336194221,1.83142121,82386.0,82372.0,0.121399]
[1731336194431,0.126382,82384.0,82370.0,0.121403]
[1731336194636,0.25232421,82384.0,82356.0,0.18275469]
[1731336194872,0.25232421,82384.0,82362.0,0.121414]
[1731336194873,0.62835415,82384.0,82362.0,0.121414]
[1731336195134,0.50241194,82384.0,82356.0,0.41345969]
[1731336195343,0.50241194,82384.0,82360.0,0.230692]
[1731336195564,0.50241194,82384.0,82364.0,0.230681]
[1731336195775,0.50541194,82384.0,82368.0,0.461341]
[1731336196008,0.13394221,82384.0,82368.0,0.23067]
[1731336196431,0.005,82381.0,82365.0,0.230678]
[1731336196635,0.005,82381.0,82356.0,0.000845]
[1731336196636,0.121391,82378.0,82367.0,0.121406]
[1731336196854,0.121391,82378.0,82356.0,0.000845]
[1731336196855,0.12594221,82377.0,82359.0,0.230697]
[1731336197109,0.12594221,82377.0,82356.0,0.000845]
[1731336197110,0.38102994,82377.0,82356.0,0.000845]
[1731336197317,0.121397,82375.0,82364.0,0.121411]
[1731336197522,0.18190969,82367.0,82365.0,0.121409]
[1731336197779,0.3078519,82366.0,82365.0,0.004]
[1731336197994,0.25235121,82366.0,82365.0,0.004]
[1731336198224,0.25235121,82366.0,82356.0,0.000845]
[1731336198225,0.121422,82357.0,82356.0,0.000845]
[1731336198496,0.121422,82357.0,82327.0,0.230785]
[1731336198497,0.005,82356.0,82327.0,0.230785]
[1731336198709,0.45632994,82357.0,82336.0,0.23076]
[1731336198710,0.005,82354.0,82336.0,0.23076]
[1731336198941,0.13094221,82353.0,82334.0,0.230765]
[1731336199150,0.12594221,82353.0,82326.0,0.232162]
[1731336199338,0.12594221,82353.0,82337.0,0.230758]
[1731336199554,0.12594221,82353.0,82348.0,0.121435]
[1731336199757,0.02422036,82346.0,82336.0,0.230761]
[1731336199974,0.18190969,82347.0,82326.0,0.001374]
[1731336199975,0.25008773,82347.0,82326.0,0.001374]
[1731336200186,0.3078519,82346.0,82332.0,0.121458]
[1731336200395,0.3078519,82346.0,82326.0,0.001374]
[1731336200396,0.121453,82336.0,82326.0,0.001374]
[1731336200614,0.126453,82336.0,82326.0,0.001374]
[1731336200840,0.25239521,82336.0,82326.0,0.001374]
[1731336201045,0.37655373,82327.0,82326.0,0.001374]
[1731336201260,0.005,82314.0,82304.0,0.0002]
[1731336201462,0.005,82312.0,82304.0,0.0002]
[1731336201692,0.12594221,82311.0,82305.0,0.121499]
[1731336201893,0.12594221,82311.0,82306.0,0.121496]
[1731336202108,0.12594221,82311.0,82304.0,0.0002]
[1731336202109,0.12594221,82311.0,82307.0,0.121495]
[1731336202317,0.12594221,82311.0,82305.0,0.230848]
[1731336202524,0.15054844,82311.0,82305.0,0.230848]
[1731336202749,0.15054844,82311.0,82304.0,0.0002]
[1731336202965,0.15054844,82311.0,82310.0,0.121491]
[1731336203189,0.008,82311.0,82310.0,0.121491]
[1731336203403,0.008,82311.0,82310.0,0.35243321]
[1731336203615,0.18190969,82327.0,82310.0,0.35243321]
[1731336203616,0.18190969,82327.0,82326.0,0.221468]
[1731336203830,0.18190969,82327.0,82326.0,0.226468]
[1731336204063,0.00182316,82353.0,82336.0,0.221453]
[1731336204290,0.00182316,82353.0,82345.0,0.12144]
[1731336204497,0.00182316,82353.0,82345.0,0.22644]
[1731336204945,0.00182316,82353.0,82352.0,0.221429]
[1731336205426,0.00182316,82353.0,82352.0,0.121429]
[1731336205632,0.12776537,82353.0,82352.0,0.0033427]
[1731336205843,0.12776537,82353.0,82344.0,0.12144]
[1731336206061,0.12776537,82353.0,82324.0,0.230794]
[1731336206062,0.00182316,82353.0,82352.0,0.12474314]
[1731336206276,0.00182316,82353.0,82352.0,0.121429]
[1731336206479,0.12776537,82353.0,82352.0,0.121429]
[1731336206695,0.12776537,82353.0,82352.0,0.12774275]
[1731336206898,0.00182316,82353.0,82352.0,0.12774275]
[1731336207314,0.00182316,82353.0,82352.0,0.22774275]
[1731336207488,0.00282316,82353.0,82352.0,0.23074275]
[1731336207898,0.12776537,82353.0,82352.0,0.00331375]
[1731336208118,0.12776537,82353.0,82352.0,0.00631375]
[1731336208293,0.00282316,82353.0,82352.0,0.006]
[1731336208506,0.12876537,82353.0,82352.0,0.00631414]
[1731336209021,0.25019337,82353.0,82352.0,0.003]
[1731336209479,0.24919337,82353.0,82352.0,0.003]
[1731336209683,0.13276537,82353.0,82332.0,0.41268069]
[1731336209888,0.12594221,82352.0,82333.0,0.23077]
[1731336210018,0.12594221,82352.0,82322.0,0.18190969]
[1731336210223,0.18190969,82350.0,82337.0,0.121451]
[1731336210447,0.18190969,82350.0,82317.0,0.00742937]
[1731336210448,0.12594221,82349.0,82334.0,0.121455]
[1731336210651,0.08515024,82348.0,82317.0,0.005]
[1731336210877,0.12594221,82347.0,82335.0,0.230763]
[1731336211080,0.12594221,82347.0,82324.0,0.1]
[1731336211081,0.12594221,82347.0,82346.0,0.121438]
[1731336211287,0.12594221,82347.0,82341.0,0.230745]
[1731336211523,0.12594221,82347.0,82326.0,0.18190969]
[1731336211723,0.12594221,82347.0,82346.0,0.121438]
[1731336211932,0.12594221,82347.0,82325.0,0.230792]
[1731336212122,0.12594221,82347.0,82324.0,0.1]
[1731336212123,0.18190969,82346.0,82334.0,0.121455]
[1731336212348,0.12594221,82345.0,82330.0,0.121461]
[1731336212554,0.12594221,82345.0,82324.0,0.1]
[1731336212555,0.12594221,82345.0,82335.0,0.121454]
[1731336212743,0.12594221,82345.0,82325.0,0.230792]
[1731336212744,0.12594221,82345.0,82325.0,0.121469]
[1731336212963,0.12594221,82345.0,82327.0,0.1]
[1731336213122,0.12594221,82345.0,82344.0,0.121441]
[1731336213474,0.12594221,82345.0,82327.0,0.1]
[1731336213475,0.18190969,82340.0,82339.0,0.121449]
[1731336213623,0.12594221,82345.0,82339.0,0.230753]
[1731336213831,0.00182316,82353.0,82352.0,0.121429]
[1731336214244,0.12776537,82353.0,82352.0,0.121429]
[1731336214790,0.00182316,82353.0,82352.0,0.121429]
[1731336215220,0.00182316,82353.0,82352.0,0.221429]
[1731336215873,0.00682316,82353.0,82352.0,0.221429]
[1731336216346,0.00682316,82353.0,82352.0,0.22385744]
[1731336216560,0.00182316,82353.0,82352.0,0.40162702]
[1731336216813,0.001694,82376.0,82375.0,0.221396]
[1731336217986,1e-06,82376.0,82375.0,0.38476592]
[1731336218241,0.18190969,82398.0,82397.0,0.221363]
[1731336218455,0.3078519,82398.0,82363.0,0.023]
[1731336220823,0.12594221,82373.0,82350.0,0.230721]
[1731336220831,0.12594221,82370.0,82350.0,0.121432]
[1731336221062,0.12594221,82370.0,82350.0,0.230722]
[1731336221540,0.12594221,82370.0,82348.0,0.18190969]
[1731336221541,0.12594221,82370.0,82367.0,0.121406]
[1731336221793,0.0499,82376.0,82348.0,0.18190969]
[1731336221794,0.003,82376.0,82375.0,0.121396]
[1731336222263,0.003,82376.0,82369.0,0.1]
[1731336222264,0.3108519,82376.0,82369.0,0.1]
[1731336222487,0.12594221,82375.0,82350.0,0.003]
[1731336222701,0.001,82373.0,82359.0,0.18190969]
[1731336222916,0.001,82373.0,82349.0,0.1]
[1731336222917,0.12594221,82372.0,82360.0,0.230694]
[1731336223167,0.12594221,82372.0,82361.0,0.121416]
[1731336223391,0.13863643,82372.0,82362.0,0.121415]
[1731336223610,0.13863643,82372.0,82357.0,0.230702]
[1731336223611,0.12594221,82372.0,82369.0,0.009]
[1731336224069,0.12594221,82372.0,82357.0,0.18190969]
[1731336224281,0.12594221,82372.0,82361.0,0.009]
[1731336224282,0.12694221,82372.0,82361.0,0.009]
[1731336224515,0.12694221,82372.0,82367.0,0.121407]
[1731336224742,0.12694221,82372.0,82361.0,0.009]
[1731336224743,0.12694221,82372.0,82363.0,0.121413]
[1731336224978,0.12694221,82372.0,82361.0,0.009]
[1731336225207,0.001696,82370.0,82363.0,0.121413]
[1731336225424,0.001696,82370.0,82364.0,0.230683]
[1731336225425,0.12594221,82369.0,82364.0,0.230683]
[1731336225670,0.12594221,82369.0,82332.0,0.23077]
[1731336225946,0.12594221,82369.0,82330.0,0.21749341]
[1731336225947,0.121414,82363.0,82345.0,0.121439]
[1731336226171,0.12594221,82362.0,82349.0,0.18190969]
[1731336226414,0.12594221,82362.0,82340.0,0.18190969]
[1731336226636,0.12594221,82362.0,82341.0,0.121446]
[1731336226862,0.12594221,82362.0,82340.0,0.18190969]
[1731336227099,0.12594221,82362.0,82354.0,0.121426]
[1731336227308,0.12594221,82362.0,82333.0,0.33077]
[1731336227309,0.18190969,82355.0,82348.0,0.121434]
[1731336227525,0.12594221,82354.0,82353.0,0.121428]
[1731336227761,0.001,82362.0,82349.0,0.009]
[1731336227984,0.12594221,82361.0,82349.0,0.009]
[1731336228508,0.12594221,82361.0,82360.0,0.121418]
[1731336228746,0.0463,82378.0,82361.0,0.221416]
[1731336228961,0.18190969,82379.0,82369.0,0.121404]
[1731336229672,0.18190969,82379.0,82361.0,0.1]
[1731336229919,0.18190969,82379.0,82355.0,0.1]
[1731336230134,0.12594221,82369.0,82354.0,0.1]
[1731336230365,0.0758,82382.0,82366.0,0.230675]
[1731336230578,0.38596849,82396.0,82369.0,0.221404]
[1731336230579,0.0758,82396.0,82369.0,0.221404]